fUSD/lending_fUSD_20260427
["ID","MTS","AMOUNT","RATE_DAILY","PERIOD"]
[421249861,1777287155488,-204.61311562,0.0003726,120]
[421249862,1777287155498,-174.06864114,0.0003726,120]
[421249863,1777287155507,-1640.34,0.0003726,120]
[421249864,1777287155516,-500.0,0.0003726,120]
[421249865,1777287155525,-885.91,0.0003726,120]
[421249866,1777287155534,-891.92,0.0003726,120]
[421249867,1777287155543,-669.56,0.0003726,120]
[421249868,1777287155552,-500.0,0.0003726,120]
[421249869,1777287155562,-1390.78,0.0003726,120]
[421249870,1777287155571,-500.0,0.0003726,120]
[421249871,1777287155580,-604.3054653,0.0003726,120]
[421249872,1777287155591,-150.31279313,0.0003726,120]
[421249873,1777287155600,-668.1,0.0003726,120]
[421249874,1777287155609,-660.18,0.0003726,120]
[421249875,1777287155618,-691.69,0.0003726,120]
[421249876,1777287155628,-691.03,0.0003726,120]
[421249877,1777287155637,-500.0,0.0003726,120]
[421249878,1777287155647,-618.59,0.0003726,30]
[421249879,1777287155656,-922.63,0.0003726,120]
[421249880,1777287155666,-953.58,0.0003726,120]
[421249881,1777287155675,-525.11,0.0003726,120]
[421249882,1777287155685,-4917.9,0.0003726,120]
[421249883,1777287155694,-551.36,0.0003726,120]
[421249884,1777287155704,-840.29,0.0003726,120]
[421249885,1777287155713,-1800.54,0.0003726,120]
[421249886,1777287155723,-739.88,0.0003726,120]
[421249887,1777287155732,-919.84,0.0003726,120]
[421249888,1777287155742,-500.0,0.0003726,120]
[421249889,1777287155751,-1344.25,0.0003726,120]
[421249890,1777287155760,-916.78,0.0003726,120]
[421249891,1777287155770,-500.0,0.0003726,60]
[421249892,1777287155779,-1345.97,0.0003726,120]
[421249893,1777287155789,-1078.03,0.0003726,120]
[421249894,1777287155798,-947.63,0.0003726,120]
[421249895,1777287155808,-549.91,0.0003726,120]
[421249896,1777287155817,-500.0,0.0003726,120]
[421249897,1777287155827,-748.29,0.0003726,120]
[421249898,1777287155837,-1742.02,0.0003726,120]
[421249899,1777287155846,-980.13,0.0003726,120]
[421249900,1777287155856,-547.89,0.0003726,120]
[421249901,1777287155865,-808.71,0.0003726,120]
[421249902,1777287155875,-697.0,0.0003726,120]
[421249903,1777287155884,-698.74,0.0003726,120]
[421249904,1777287155894,-861.18,0.0003726,120]
[421249905,1777287155904,-599.72,0.0003726,120]
[421249906,1777287155913,-971.15,0.0003726,120]
[421249907,1777287155922,-1898.91,0.0003726,120]
[421249908,1777287155932,-2008.02,0.0003726,120]
[421249909,1777287155942,-500.0,0.0003726,120]
[421249910,1777287155951,-546.88,0.0003726,120]
[421249911,1777287155961,-500.0,0.0003726,120]
[421249912,1777287155970,-933.2,0.0003726,120]
[421249913,1777287155979,-923.43,0.0003726,120]
[421249914,1777287155988,-814.23,0.0003726,7]
[421249915,1777287155998,-500.0,0.0003726,120]
[421249916,1777287156008,-545.89,0.0003726,120]
[421249917,1777287156017,-500.0,0.0003726,120]
[421249918,1777287156026,-607.22,0.0003726,120]
[421249919,1777287156036,-1022.01,0.0003726,120]
[421249920,1777287156047,-272.47940358,0.0003726,120]
[421249921,1777287156056,-1403.37,0.0003726,120]
[421249922,1777287156066,-996.98,0.0003726,120]
[421249923,1777287156075,-365.99994154,0.0003726,120]
[421249924,1777287156085,-571.92,0.0003726,120]
[421249925,1777287156094,-500.0,0.0003726,120]
[421249926,1777287156104,-500.0,0.0003726,120]
[421249927,1777287156113,-500.0,0.0003726,120]
[421249928,1777287156122,-2027.39,0.0003726,120]
[421249929,1777287156132,-544.78,0.0003726,120]
[421249930,1777287156141,-1173.63,0.0003726,120]
[421249931,1777287156150,-580.92,0.0003726,120]
[421249932,1777287156160,-957.19,0.0003726,120]
[421249933,1777287156169,-500.0,0.0003726,120]
[421249934,1777287156179,-608.77316771,0.0003726,120]
[421249935,1777287156189,-1129.42,0.0003726,120]
[421249936,1777287156198,-549.6,0.0003726,120]
[421249937,1777287156208,-500.0,0.0003726,120]
[421249938,1777287156217,-957.72,0.0003726,120]
[421249939,1777287156227,-2273.93,0.0003726,120]
[421249940,1777287156236,-531.34,0.0003726,120]
[421249941,1777287156246,-500.0,0.0003726,120]
[421249942,1777287156255,-826.33,0.0003726,120]
[421249943,1777287156265,-509.36,0.0003726,120]
[421249944,1777287156274,-1144.83,0.0003726,120]
[421249945,1777287156284,-870.72,0.0003726,120]
[421249946,1777287156293,-1987.57,0.0003726,120]
[421249947,1777287156302,-500.0,0.0003726,120]
[421249948,1777287156312,-1889.91,0.0003726,120]
[421249949,1777287156322,-997.41,0.0003726,120]
[421249950,1777287156332,-471.15899604,0.0003726,120]
[421249951,1777287156341,-645.47,0.0003726,120]
[421249952,1777287156350,-551.39,0.0003726,120]
[421249953,1777287156360,-607.71,0.0003726,120]
[421249954,1777287156369,-1410.28,0.0003726,120]
[421249955,1777287156378,-1075.28,0.0003726,120]
[421249956,1777287156387,-512.2,0.0003726,120]
[421249957,1777287156396,-571.84,0.0003726,120]
[421249958,1777287156406,-500.0,0.0003726,120]
[421249959,1777287156416,-670.88,0.0003726,120]
[421249960,1777287156425,-927.87,0.0003726,120]
[421249961,1777287156434,-733.46,0.0003726,120]
[421249962,1777287156444,-500.0,0.0003726,120]
[421249963,1777287156453,-845.56,0.0003726,120]
[421249964,1777287156463,-503.0144958,0.0003726,120]
[421249965,1777287156473,-500.0,0.0003726,120]
[421249966,1777287156483,-1708.75,0.0003726,120]
[421249967,1777287156492,-1389.02,0.0003726,120]
[421249968,1777287156501,-721.4,0.0003726,120]
[421249969,1777287156511,-969.99,0.0003726,120]
[421249970,1777287156520,-832.2,0.0003726,120]
[421249971,1777287156530,-1256.96,0.0003726,120]
[421249972,1777287156539,-822.73,0.0003726,120]
[421249973,1777287156549,-1697.87,0.0003726,120]
[421249974,1777287156558,-740.81,0.0003726,120]
[421249975,1777287156567,-725.79,0.0003726,120]
[421249976,1777287156577,-767.5,0.0003726,120]
[421249977,1777287156586,-704.65,0.0003726,120]
[421249978,1777287156595,-874.64,0.0003726,120]
[421249979,1777287156604,-539.51,0.0003726,120]
[421249980,1777287156614,-3139.33,0.0003726,120]
[421249981,1777287156623,-1571.63,0.0003726,120]
[421249982,1777287156632,-631.89,0.0003726,120]
[421249983,1777287156646,-724.47,0.0003726,120]
[421249984,1777287156655,-714.42,0.0003726,120]
[421249985,1777287156664,-830.35,0.0003726,120]
[421249986,1777287156673,-500.0,0.0003726,120]
[421249987,1777287156682,-529.87,0.0003726,120]
[421249988,1777287156691,-890.53,0.0003726,120]
[421249989,1777287156701,-633.28,0.0003726,120]
[421249990,1777287156711,-1042.08,0.0003726,120]
[421249991,1777287156720,-1031.26,0.0003726,120]
[421249992,1777287156729,-558.02454064,0.0003726,120]
[421249993,1777287156739,-789.82,0.0003726,120]
[421249994,1777287156747,-1044.44,0.0003726,7]
[421249995,1777287156757,-2152.64,0.0003726,120]
[421249996,1777287156766,-500.0,0.0003726,120]
[421249997,1777287156775,-951.45,0.0003726,120]
[421249998,1777287156784,-10570.76,0.0003726,120]
[421249999,1777287156793,-953.25,0.0003726,120]
[421250000,1777287156802,-500.0,0.0003726,120]
[421250001,1777287156811,-683.94,0.0003726,120]
[421250002,1777287156820,-1457.61,0.0003726,120]
[421250003,1777287156830,-853.59,0.0003726,120]
[421250004,1777287156839,-927.26,0.0003726,120]
[421250005,1777287156848,-692.0,0.0003726,120]
[421250006,1777287156858,-1072.51,0.0003726,120]
[421250007,1777287156867,-2915.57,0.0003726,120]
[421250008,1777287156877,-731.44,0.0003726,120]
[421250009,1777287156886,-701.43,0.0003726,120]
[421250010,1777287156895,-500.0,0.0003726,120]
[421250011,1777287156905,-954.88,0.0003726,120]
[421250012,1777287156914,-838.15,0.0003726,120]
[421250013,1777287156923,-1783.16,0.0003726,120]
[421250014,1777287156933,-500.0,0.0003726,120]
[421250015,1777287156943,-4705.11,0.0003726,120]
[421250016,1777287156953,-1730.6,0.0003726,120]
[421250017,1777287156962,-500.0,0.0003726,120]
[421250018,1777287156971,-1123.77,0.0003726,120]
[421250019,1777287156981,-500.0,0.0003726,120]
[421250020,1777287156990,-1408.68,0.0003726,120]
[421250021,1777287156999,-714.81,0.0003726,120]
[421250022,1777287157010,-500.0,0.0003726,120]
[421250023,1777287157019,-5381.05,0.0003726,120]
[421250024,1777287157029,-667.82,0.0003726,120]
[421250025,1777287157040,-1779.59,0.0003726,120]
[421250026,1777287157050,-922.62,0.0003726,120]
[421250027,1777287157060,-500.0,0.0003726,120]
[421250028,1777287157071,-625.44,0.0003726,5]
[421250029,1777287157081,-1690.78,0.0003726,120]
[421250030,1777287157092,-2035.1,0.0003726,120]
[421250031,1777287157102,-674.61,0.0003726,120]
[421250032,1777287157111,-500.0,0.0003726,120]
[421250033,1777287157120,-1164.41,0.0003726,120]
[421250034,1777287157130,-1082.08,0.0003726,120]
[421250035,1777287157141,-500.0,0.0003726,120]
[421250036,1777287157152,-998.96,0.0003726,120]
[421250037,1777287157162,-1043.04,0.0003726,120]
[421250038,1777287157173,-784.08,0.0003726,120]
[421250039,1777287157183,-1079.64,0.0003726,120]
[421250040,1777287157193,-1143.94,0.0003726,120]
[421250041,1777287157203,-1451.57,0.0003726,120]
[421250042,1777287157212,-819.21,0.0003726,120]
[421250043,1777287157222,-1138.56,0.0003726,120]
[421250044,1777287157232,-601.09,0.0003726,120]
[421250045,1777287157241,-4201.7,0.0003726,120]
[421250046,1777287157251,-1047.55,0.0003726,120]
[421250047,1777287157260,-996.55,0.0003726,120]
[421250048,1777287157271,-541.91,0.0003726,120]
[421250049,1777287157281,-500.0,0.0003726,120]
[421250050,1777287157290,-795.18,0.0003726,120]
[421250051,1777287157300,-1162.36,0.0003726,120]
[421250052,1777287157309,-845.1,0.0003726,120]
[421250053,1777287157319,-1487.38,0.0003726,120]
[421250054,1777287157329,-500.0,0.0003726,120]
[421250055,1777287157339,-500.0,0.0003726,120]
[421250056,1777287157349,-500.0,0.0003726,120]
[421250057,1777287157359,-898.94,0.0003726,120]
[421250058,1777287157368,-2636.09,0.0003726,120]
[421250059,1777287157378,-500.0,0.0003726,120]
[421250060,1777287157388,-1789.45,0.0003726,120]
[421250061,1777287157398,-500.62,0.0003726,120]
[421250062,1777287157407,-500.0,0.0003726,120]
[421250063,1777287157417,-892.08,0.0003726,120]
[421250064,1777287157427,-1085.3,0.0003726,120]
[421250065,1777287157436,-631.37,0.0003726,120]
[421250066,1777287157446,-555.59328831,0.0003726,120]
[421250067,1777287157455,-581.62,0.0003726,120]
[421250068,1777287157464,-808.43,0.0003726,120]
[421250069,1777287157473,-741.62,0.0003726,120]
[421250070,1777287157483,-352.32249164,0.0003726,120]
[421250071,1777287157492,-500.0,0.0003726,120]
[421250072,1777287157502,-762.27,0.0003726,120]
[421250073,1777287157511,-1157.96,0.0003726,120]
[421250074,1777287157521,-293.766259,0.0003726,120]
[421250075,1777287157532,-633.93,0.0003726,120]
[421250076,1777287157542,-874.69,0.0003726,120]
[421250077,1777287157552,-900.98,0.0003726,120]
[421250078,1777287157562,-500.0,0.0003726,120]
[421250079,1777287157571,-10204.73,0.0003726,120]
[421250080,1777287157581,-1526.17,0.0003726,120]
[421250081,1777287157591,-500.0,0.0003726,120]
[421250082,1777287157601,-500.0,0.0003726,120]
[421250083,1777287157611,-891.6,0.0003726,120]
[421250084,1777287157621,-1367.53,0.0003726,120]
[421250085,1777287157631,-683.25,0.0003726,120]
[421250086,1777287157640,-737.72,0.0003726,120]
[421250087,1777287157650,-10627.51,0.0003726,11]
[421250088,1777287157660,-1508.4,0.0003726,120]
[421250089,1777287157669,-944.61,0.0003726,120]
[421250090,1777287157678,-1952.39,0.0003726,120]
[421250091,1777287157687,-992.31,0.0003726,120]
[421250092,1777287157697,-644.32,0.0003726,120]
[421250093,1777287157707,-855.86,0.0003726,120]
[421250094,1777287157716,-938.15,0.0003726,120]
[421250095,1777287157725,-976.87,0.0003726,120]
[421250096,1777287157735,-500.0,0.0003726,120]
[421250097,1777287157744,-500.0,0.0003726,120]
[421250098,1777287157754,-505.03,0.0003726,120]
[421250099,1777287157764,-889.14,0.0003726,120]
[421250100,1777287157774,-500.0,0.0003726,120]
[421250101,1777287157785,-816.73,0.0003726,120]
[421250102,1777287157795,-624.72,0.0003726,120]
[421250103,1777287157804,-9821.09,0.0003726,14]
[421250104,1777287157815,-523.03,0.0003726,120]
[421250105,1777287157825,-2650.84,0.0003726,2]
[421250106,1777287157835,-500.0,0.0003726,120]
[421250107,1777287157844,-822.98,0.0003726,120]
[421250108,1777287157854,-729.37,0.0003726,120]
[421250109,1777287157864,-1000.0,0.0003726,120]
[421250110,1777287157874,-1044.79,0.0003726,120]
[421250111,1777287157883,-2033.75,0.0003726,120]
[421250112,1777287157894,-2315.34,0.0003726,120]
[421250113,1777287157903,-1144.22,0.0003726,120]
[421250114,1777287157913,-872.94,0.0003726,120]
[421250115,1777287157923,-957.71,0.0003726,120]
[421250116,1777287157933,-651.78,0.0003726,120]
[421250117,1777287157942,-905.69,0.0003726,120]
[421250118,1777287157953,-659.77,0.0003726,120]
[421250119,1777287157962,-572.93,0.0003726,120]
[421250120,1777287157972,-526.89,0.0003726,120]
[421250121,1777287157982,-936.24,0.0003726,120]
[421250122,1777287157991,-2198.73,0.0003726,31]
[421250123,1777287158001,-7236.62,0.0003726,120]
[421250124,1777287158010,-1500.0,0.0003726,120]
[421250125,1777287158020,-601.2,0.0003726,120]
[421250126,1777287158030,-150.0,0.00037298,2]
[421250127,1777287158040,-300.0,0.00037315,2]
[421250128,1777287158049,-300.0,0.00037315,2]
[421250129,1777287158059,-300.0,0.00037315,2]
[421250130,1777287158068,-300.0,0.00037315,2]
[421250131,1777287158078,-300.0,0.00037315,2]
[421250132,1777287158087,-300.0,0.00037315,2]
[421250133,1777287158096,-300.0,0.00037315,2]
[421250134,1777287158105,-300.0,0.00037315,2]
[421250135,1777287158115,-300.0,0.00037315,2]
[421250136,1777287158124,-300.0,0.00037315,2]
[421250137,1777287158134,-300.0,0.00037315,2]
[421250138,1777287158143,-300.0,0.00037315,2]
[421250139,1777287158153,-300.0,0.00037315,2]
[421250140,1777287158162,-300.0,0.00037315,2]
[421250141,1777287158171,-300.0,0.00037315,2]
[421250142,1777287158180,-300.0,0.00037315,2]
[421250143,1777287158190,-300.0,0.00037315,2]
[421250144,1777287158200,-300.0,0.00037315,2]
[421250145,1777287158209,-300.0,0.00037315,2]
[421250146,1777287158219,-300.0,0.00037315,2]
[421250147,1777287158228,-300.0,0.00037315,2]
[421250148,1777287158238,-300.0,0.00037315,2]
[421250149,1777287158247,-300.0,0.00037315,2]
[421250150,1777287158256,-300.0,0.00037315,2]
[421250151,1777287158266,-300.0,0.00037315,2]
[421250152,1777287158275,-300.0,0.00037315,2]
[421250153,1777287158285,-300.0,0.00037315,2]
[421250154,1777287158294,-300.0,0.00037315,2]
[421250155,1777287158303,-300.0,0.00037315,2]
[421250156,1777287158312,-300.0,0.00037315,2]
[421250157,1777287158321,-300.0,0.00037315,2]
[421250158,1777287158331,-300.0,0.00037315,2]
[421250159,1777287158340,-300.0,0.00037315,2]
[421250160,1777287158350,-300.0,0.00037315,2]
[421250161,1777287158360,-300.0,0.00037315,2]
[421250162,1777287158369,-300.0,0.00037315,2]
[421250163,1777287158378,-300.0,0.00037315,2]
[421250164,1777287158387,-300.0,0.00037315,2]
[421250165,1777287158396,-300.0,0.00037315,2]
[421250166,1777287158405,-300.0,0.00037315,2]
[421250167,1777287158414,-642.0,0.00037342,2]
[421250168,1777287158423,-642.0,0.00037342,2]
[421250169,1777287158431,-642.0,0.00037342,2]
[421250170,1777287158440,-642.0,0.00037342,2]
[421250171,1777287158449,-642.0,0.00037342,2]
[421250172,1777287158458,-642.0,0.00037342,2]
[421250173,1777287158467,-642.0,0.00037342,2]
[421250174,1777287158475,-642.0,0.00037342,2]
[421250175,1777287158484,-642.0,0.00037342,2]
[421250176,1777287158493,-642.0,0.00037342,2]
[421250177,1777287158502,-642.0,0.00037342,2]
[421250178,1777287158511,-642.0,0.00037342,2]
[421250179,1777287158520,-642.0,0.00037342,2]
[421250180,1777287158529,-642.0,0.00037342,2]
[421250181,1777287158539,-300.0,0.0003737,2]
[421250182,1777287158547,-300.0,0.0003737,2]
[421250183,1777287158557,-300.0,0.0003737,2]
[421250184,1777287158566,-300.0,0.0003737,2]
[421250185,1777287158575,-300.0,0.0003737,2]
[421250186,1777287158584,-300.0,0.0003737,2]
[421250187,1777287158593,-300.0,0.0003737,2]
[421250188,1777287158602,-300.0,0.0003737,2]
[421250189,1777287158612,-300.0,0.0003737,2]
[421250190,1777287158621,-300.0,0.0003737,2]
[421250191,1777287158630,-300.0,0.0003737,2]
[421250192,1777287158639,-300.0,0.0003737,2]
[421250193,1777287158648,-300.0,0.0003737,2]
[421250194,1777287158656,-300.0,0.0003737,2]
[421250195,1777287158666,-300.0,0.0003737,2]
[421250196,1777287158674,-300.0,0.0003737,2]
[421250197,1777287158683,-300.0,0.0003737,2]
[421250198,1777287158693,-472.0,0.00037397,2]
[421250199,1777287158702,-472.0,0.00037397,2]
[421250200,1777287158711,-472.0,0.00037397,2]
[421250201,1777287158720,-472.0,0.00037397,2]
[421250202,1777287158729,-472.0,0.00037397,2]
[421250203,1777287158819,-472.0,0.00037397,2]
[421250204,1777287158857,-472.0,0.00037397,2]
[421250205,1777287158866,-472.0,0.00037397,2]
[421250206,1777287158876,-472.0,0.00037397,2]
[421250207,1777287158884,-472.0,0.00037397,2]
[421250208,1777287158894,-472.0,0.00037397,2]
[421250209,1777287158903,-472.0,0.00037397,2]
[421250210,1777287158913,-472.0,0.00037397,2]
[421250211,1777287158922,-472.0,0.00037397,2]
[421250212,1777287158931,-395.0,0.00037425,2]
[421250213,1777287158940,-395.0,0.00037425,2]
[421250214,1777287158949,-395.0,0.00037425,2]
[421250215,1777287158959,-395.0,0.00037425,2]
[421250216,1777287158967,-395.0,0.00037425,2]
[421250217,1777287158977,-395.0,0.00037425,2]
[421250218,1777287158986,-395.0,0.00037425,2]
[421250219,1777287158996,-395.0,0.00037425,2]
[421250220,1777287159005,-395.0,0.00037425,2]
[421250221,1777287159014,-395.0,0.00037425,2]
[421250222,1777287159024,-395.0,0.00037425,2]
[421250223,1777287159033,-395.0,0.00037425,2]
[421250224,1777287159042,-395.0,0.00037425,2]
[421250225,1777287159051,-395.0,0.00037425,2]
[421250226,1777287159060,-395.0,0.00037425,2]
[421250227,1777287159069,-852292.015,0.00037444,7]
[421250228,1777287159079,-246.34,0.00037481,30]
[421250229,1777287159088,-200.0,0.0003751,6]
[421250230,1777287159097,-500.0,0.00037531,30]
[421250231,1777287159107,-321.13,0.00037531,30]
[421250232,1777287159116,-1606.90835017,0.00037534,2]
[421250233,1777287159127,-1606.90835017,0.00037534,2]
[421250234,1777287159136,-1606.90835017,0.00037534,2]
[421250235,1777287159146,-40919.8,0.00037534,120]
[421250236,1777287159155,-5510.884336,0.00037534,120]
[421250237,1777287159164,-406.931409,0.00037534,120]
[421250238,1777287159174,-325.762595,0.00037534,120]
[421250239,1777287159182,-342.964341,0.00037534,120]
[421250240,1777287159192,-2698.281126,0.00037534,120]
[421250241,1777287159202,-500.0,0.00037534,120]
[421250242,1777287159211,-863.36,0.00037534,120]
[421250243,1777287159220,-500.0,0.00037534,2]
[421250244,1777287159229,-377.14960033,0.00037534,120]
[421250245,1777287159239,-599.06,0.00037534,120]
[421250246,1777287159248,-640.83,0.00037534,120]
[421250247,1777287159257,-565.53,0.00037534,120]
[421250248,1777287159268,-1211.95,0.00037534,120]
[421250249,1777287159277,-553.4,0.00037534,120]
[421250250,1777287159286,-715.07,0.00037534,120]
[421250251,1777287159296,-500.0,0.00037534,120]
[421250252,1777287159305,-938.55,0.00037534,120]
[421250253,1777287159315,-1090.36,0.00037534,120]
[421250254,1777287159325,-634.95,0.00037534,120]
[421250255,1777287159334,-528.14,0.00037534,120]
[421250256,1777287159343,-1072.38,0.00037534,120]
[421250257,1777287159352,-1314.31,0.00037534,120]
[421250258,1777287159362,-703.47,0.00037534,120]
[421250259,1777287159371,-500.0,0.00037534,120]
[421250260,1777287159380,-279.49616231,0.00037534,120]
[421250261,1777287159389,-787.64,0.00037534,120]
[421250262,1777287159398,-516.81,0.00037534,120]
[421250263,1777287159407,-2357.31,0.00037534,120]
[421250264,1777287159416,-500.0,0.00037534,120]
[421250265,1777287159425,-1649.9,0.00037534,30]
[421250266,1777287159434,-527.75,0.00037534,120]
[421250267,1777287159443,-663.98,0.00037534,120]
[421250268,1777287159452,-752.81,0.00037534,120]
[421250269,1777287159462,-696.22,0.00037534,120]
[421250270,1777287159472,-500.0,0.00037534,120]
[421250271,1777287159481,-1446.95,0.00037534,120]
[421250272,1777287159491,-964.96,0.00037534,120]
[421250273,1777287159501,-529.41,0.00037534,120]
[421250274,1777287159511,-500.0,0.00037534,120]
[421250275,1777287159520,-500.0,0.00037534,120]
[421250276,1777287159529,-500.0,0.00037534,120]
[421250277,1777287159538,-1077.32,0.00037534,120]
[421250278,1777287159548,-1000.0,0.00037534,120]
[421250279,1777287159557,-949.83,0.00037534,120]
[421250280,1777287159567,-765.4,0.00037534,120]
[421250281,1777287159577,-599.76,0.00037534,120]
[421250282,1777287159587,-500.0,0.00037534,120]
[421250283,1777287159596,-500.0,0.00037534,120]
[421250284,1777287159606,-812.99,0.00037534,120]
[421250285,1777287159615,-1319.91,0.00037534,120]
[421250286,1777287159624,-559.35,0.00037534,120]
[421250287,1777287159633,-1706.39,0.00037534,120]
[421250288,1777287159642,-500.0,0.00037534,120]
[421250289,1777287159652,-668.63,0.00037534,120]
[421250290,1777287159661,-1799.8,0.00037534,30]
[421250291,1777287159671,-2310.82,0.00037534,120]
[421250292,1777287159680,-500.0,0.00037534,120]
[421250293,1777287159689,-951.83,0.00037534,120]
[421250294,1777287159698,-500.0,0.00037534,120]
[421250295,1777287159708,-500.0,0.00037534,120]
[421250296,1777287159717,-500.0,0.00037534,120]
[421250297,1777287159726,-691.55,0.00037534,120]
[421250298,1777287159735,-500.0,0.00037534,120]
[421250299,1777287159745,-822.42,0.00037534,120]
[421250300,1777287159755,-690.22,0.00037534,120]
[421250301,1777287159764,-1041.51,0.00037534,120]
[421250302,1777287159774,-817.53,0.00037534,120]
[421250303,1777287159783,-500.0,0.00037534,120]
[421250304,1777287159792,-500.0,0.00037534,120]
[421250305,1777287159802,-812.8,0.00037534,120]
[421250306,1777287159811,-894.99,0.00037534,120]
[421250307,1777287159821,-1018.47,0.00037534,120]
[421250308,1777287159831,-500.0,0.00037534,120]
[421250309,1777287159840,-1560.45,0.00037534,10]
[421250310,1777287159849,-654.65,0.00037534,120]
[421250311,1777287159859,-770.15,0.00037534,120]
[421250312,1777287159868,-747.23,0.00037534,120]
[421250313,1777287159878,-592.21,0.00037534,120]
[421250314,1777287159887,-1047.65,0.00037534,120]
[421250315,1777287159897,-500.0,0.00037534,120]
[421250316,1777287159907,-548.93,0.00037534,120]
[421250317,1777287159916,-524.10868003,0.00037534,120]
[421250318,1777287159926,-1885.25,0.00037534,120]
[421250319,1777287159936,-632.88,0.00037534,120]
[421250320,1777287159946,-810.82,0.00037534,120]
[421250321,1777287159955,-1242.85,0.00037534,120]
[421250322,1777287159965,-696.25,0.00037534,120]
[421250323,1777287159975,-1579.01,0.00037534,120]
[421250324,1777287159985,-601.37,0.00037534,120]
[421250325,1777287159994,-1456.44,0.00037534,120]
[421250326,1777287160004,-595.98,0.00037534,120]
[421250327,1777287160014,-500.0,0.00037534,120]
[421250328,1777287160023,-1572.92,0.00037534,120]
[421250329,1777287160032,-1223.21,0.00037534,120]
[421250330,1777287160043,-537.38162957,0.00037534,120]
[421250331,1777287160052,-500.0,0.00037534,120]
[421250332,1777287160063,-685.94,0.00037534,120]
[421250333,1777287160072,-996.26,0.00037534,120]
[421250334,1777287160082,-987.31,0.00037534,120]
[421250335,1777287160092,-977.11,0.00037534,120]
[421250336,1777287160102,-1114.4,0.00037534,120]
[421250337,1777287160111,-922.87,0.00037534,120]
[421250338,1777287160121,-694.64,0.00037534,120]
[421250339,1777287160130,-876.6,0.00037534,120]
[421250340,1777287160140,-1292.17,0.00037534,120]
[421250341,1777287160149,-500.0,0.00037534,120]
[421250342,1777287160159,-2804.65,0.00037534,120]
[421250343,1777287160168,-831.75,0.00037534,14]
[421250344,1777287160178,-170.66005916,0.00037534,14]
[421250345,1777287160188,-695.08,0.00037534,120]
[421250346,1777287160198,-975.03,0.00037534,120]
[421250347,1777287160207,-667.25,0.00037534,120]
[421250348,1777287160217,-500.0,0.00037534,120]
[421250349,1777287160226,-500.0,0.00037534,120]
[421250350,1777287160236,-514.22,0.00037534,120]
[421250351,1777287160245,-808.81,0.00037534,120]
[421250352,1777287160255,-656.37,0.00037534,120]
[421250353,1777287160264,-1754.83,0.00037534,120]
[421250354,1777287160274,-924.49,0.00037534,120]
[421250355,1777287160283,-809.84,0.00037534,120]
[421250356,1777287160293,-816.58,0.00037534,120]
[421250357,1777287160302,-1699.99,0.00037534,120]
[421250358,1777287160312,-963.43,0.00037534,120]
[421250359,1777287160322,-988.21,0.00037534,120]
[421250360,1777287160331,-803.53,0.00037534,120]